fUST/lending_fUST_20250303
["ID","MTS","AMOUNT","RATE_DAILY","PERIOD"]
[355131980,1740931852839,-212.71343364,0.00032876,2]
[355131981,1740931852849,-199.76428167,0.00032876,2]
[355131982,1740931852987,-302.0,0.00032876,2]
[355131983,1740931853000,-0.05655368,0.00032876,2]
[355131984,1740931853011,-629.24708,0.00032876,2]
[355131985,1740931853020,-500.0,0.00032877,2]
[355131986,1740931853032,-500.0,0.00032877,2]
[355131987,1740931853041,-205.3998276,0.00032877,2]
[355131988,1740931853051,-1005.278097,0.00032877,2]
[355131989,1740931853061,-151.0,0.00032877,14]
[355131990,1740931853070,-151.0,0.00032877,14]
[355131991,1740931853080,-151.0,0.00032877,14]
[355131992,1740931853090,-151.0,0.00032877,14]
[355131993,1740931853101,-151.0,0.00032877,14]
[355131994,1740931853111,-151.0,0.00032877,14]
[355131995,1740931853121,-151.0,0.00032877,14]
[355131996,1740931853131,-151.0,0.00032877,14]
[355131997,1740931853142,-151.0,0.00032877,14]
[355131998,1740931853153,-151.0,0.00032877,14]
[355131999,1740931853163,-151.0,0.00032877,14]
[355132000,1740931853174,-151.0,0.00032877,14]
[355132001,1740931853184,-151.0,0.00032877,14]
[355132002,1740931853195,-236.401127,0.00032877,14]
[355132003,1740931853205,-160.0,0.000329,6]
[355132004,1740931853215,-2327.33,0.000329,30]
[355132005,1740931853226,-1240.32,0.000329,30]
[355132006,1740931853236,-1214.74312739,0.000329,30]
[355132007,1740931853249,-23731.63856073,0.000329,30]
[355132008,1740931853901,-397.0,0.00021779,2]
[355132009,1740931853913,-500.0,0.00024658,2]
[355132010,1740931853923,-500.0,0.00024658,2]
[355132011,1740931853936,-500.0,0.00024658,2]
[355132012,1740931853950,-500.0,0.00024658,2]
[355132013,1740931853961,-500.0,0.00024658,2]
[355132014,1740931853971,-500.0,0.00024658,2]
[355132015,1740931853981,-500.0,0.00024658,2]
[355132016,1740931853991,-500.0,0.00024658,2]
[355132017,1740931854002,-500.0,0.00024658,2]
[355132018,1740931854012,-500.0,0.00024658,2]
[355132019,1740931854022,-500.0,0.00024658,2]
[355132020,1740931854037,-500.0,0.00024658,2]
[355132021,1740931854047,-500.0,0.00024658,2]
[355132022,1740931854059,-500.0,0.00024658,2]
[355132023,1740931854068,-500.0,0.00024658,2]
[355132024,1740931854079,-500.0,0.00024658,2]
[355132025,1740931854088,-500.0,0.00024658,2]
[355132026,1740931854099,-179.94242009,0.00024658,2]
[355132027,1740931854109,-500.0,0.00024658,2]
[355132028,1740931854119,-500.0,0.00024658,2]
[355132029,1740931854130,-500.0,0.00024658,2]
[355132030,1740931854140,-500.0,0.00024658,2]
[355132031,1740931854150,-500.0,0.00024658,2]
[355132032,1740931854160,-500.0,0.00024658,2]
[355132033,1740931854171,-446.37124546,0.00024658,2]
[355132034,1740931854181,-500.0,0.00024658,2]
[355132035,1740931854193,-500.0,0.00024658,2]
[355132036,1740931854204,-500.0,0.00024658,2]
[355132037,1740931854215,-500.0,0.00024658,2]
[355132038,1740931854226,-500.0,0.00024658,2]
[355132039,1740931854237,-500.0,0.00024658,2]
[355132040,1740931854247,-500.0,0.00024658,2]
[355132041,1740931854259,-500.0,0.00024658,2]
[355132042,1740931854270,-500.0,0.00024658,2]
[355132043,1740931854286,-500.0,0.00024658,2]
[355132044,1740931854296,-500.0,0.00024658,2]
[355132045,1740931854308,-500.0,0.00024658,2]
[355132046,1740931854319,-500.0,0.00024658,2]
[355132047,1740931854332,-500.0,0.00024658,2]
[355132048,1740931854343,-500.0,0.00024658,2]
[355132049,1740931854353,-500.0,0.00024658,2]
[355132050,1740931854363,-500.0,0.00024658,2]
[355132051,1740931854375,-500.0,0.00024658,2]
[355132052,1740931854385,-500.0,0.00024658,2]
[355132053,1740931854395,-500.0,0.00024658,2]
[355132054,1740931854406,-500.0,0.00024658,2]
[355132055,1740931854416,-500.0,0.00024658,2]
[355132056,1740931854427,-500.0,0.00024658,2]
[355132057,1740931854437,-500.0,0.00024658,2]
[355132058,1740931854447,-500.0,0.00024658,2]
[355132059,1740931854457,-500.0,0.00024658,2]
[355132060,1740931854467,-500.0,0.00024658,2]
[355132061,1740931854477,-500.0,0.00024658,2]
[355132062,1740931854487,-500.0,0.00024658,2]
[355132063,1740931854497,-500.0,0.00024658,2]
[355132064,1740931854507,-500.0,0.00024658,2]
[355132065,1740931854517,-500.0,0.00024658,2]
[355132066,1740931854531,-500.0,0.00024658,2]
[355132067,1740931854542,-500.0,0.00024658,2]
[355132068,1740931854553,-500.0,0.00024658,2]
[355132069,1740931854563,-500.0,0.00024658,2]
[355132070,1740931854573,-500.0,0.00024658,2]
[355132071,1740931854586,-500.0,0.00024658,2]
[355132072,1740931854598,-500.0,0.00024658,2]
[355132073,1740931854609,-500.0,0.00024658,2]
[355132074,1740931854623,-500.0,0.00024658,2]
[355132075,1740931854634,-500.0,0.00024658,2]
[355132076,1740931854647,-500.0,0.00024658,2]
[355132077,1740931854658,-500.0,0.00024658,2]
[355132078,1740931854670,-500.0,0.00024658,2]
[355132079,1740931854680,-573.93423322,0.00024658,2]
[355132080,1740931854691,-500.0,0.00024658,2]
[355132081,1740931854702,-500.0,0.00024658,2]
[355132082,1740931854713,-500.0,0.00024658,2]
[355132083,1740931854723,-500.0,0.00024658,2]
[355132084,1740931854736,-500.0,0.00024658,2]
[355132085,1740931854749,-500.0,0.00024658,2]
[355132086,1740931854762,-500.0,0.00024658,2]
[355132087,1740931854773,-500.0,0.00024658,2]
[355132088,1740931854786,-500.0,0.00024658,2]
[355132089,1740931854796,-500.0,0.00024658,2]
[355132090,1740931854806,-500.0,0.00024658,2]
[355132091,1740931854816,-500.0,0.00024658,2]
[355132092,1740931854826,-500.0,0.00024658,2]
[355132093,1740931854837,-397.0,0.00024779,2]
[355132094,1740931854847,-600.93,0.00026301,2]
[355132095,1740931854857,-600.93,0.00026575,2]
[355132096,1740931854867,-600.93,0.00026849,2]
[355132097,1740931854877,-600.93,0.00027123,2]
[355132098,1740931854888,-600.93,0.00027397,2]
[355132099,1740931854902,-600.93,0.00027671,2]
[355132100,1740931854918,-600.93,0.00027945,2]
[355132101,1740931854930,-601.15,0.00028219,2]
[355132102,1740931854941,-1479.66,0.000327,31]
[355132103,1740931854951,-1479.66,0.000327,31]
[355132104,1740931854962,-1479.66,0.000327,31]
[355132105,1740931854975,-1479.66,0.000327,31]
[355132106,1740931854987,-1479.66,0.000327,31]
[355132107,1740931855001,-500.0,0.00032876,2]
[355132108,1740931855012,-242.21582445,0.00032876,2]
[355132109,1740931855022,-500.0,0.00032876,2]
[355132110,1740931855034,-500.0,0.00032876,2]
[355132111,1740931855045,-500.0,0.00032876,2]
[355132112,1740931855054,-500.0,0.00032876,2]
[355132113,1740931855065,-500.0,0.00032876,2]
[355132114,1740931855075,-500.0,0.00032876,2]
[355132115,1740931855086,-500.0,0.00032876,2]
[355132116,1740931855097,-508.2149148,0.00032876,2]
[355132117,1740931855107,-500.0,0.00032876,2]
[355132118,1740931855118,-11895.95831188,0.000329,30]
[355132119,1740931855129,-858.39,0.000329,30]
[355132120,1740931855140,-2806.49,0.000329,30]
[355132121,1740931855151,-180.18111045,0.00033,2]
[355132122,1740931855162,-2000.0,0.00033,9]
[355132123,1740931855173,-2000.0,0.00033,9]
[355132124,1740931855183,-160.0,0.00033,30]
[355132125,1740931855193,-240.0,0.00033,2]
[355132126,1740931855204,-240.0,0.00033,2]
[355132127,1740931855214,-1291.3,0.0003315,2]
[355132128,1740931855225,-195.95,0.000332,7]
[355132129,1740931855236,-1291.3,0.00033424,2]
[355132130,1740931855246,-160.0,0.00033464,7]
[355132131,1740931855257,-173.639,0.00033533,2]
[355132132,1740931855267,-175.37728822,0.00033678,10]
[355132133,1740931855281,-2848.35484283,0.00033696,2]
[355132134,1740931855294,-1291.43467381,0.00033698,2]
[355132135,1740931855305,-1500.0,0.00033771,5]
[355132136,1740931855315,-1500.0,0.00033798,5]
[355132137,1740931855326,-1500.0,0.00033798,5]
[355132138,1740931855336,-150.0,0.00033853,2]
[355132139,1740931855346,-150.0,0.00033853,2]
[355132140,1740931855356,-75129.66032274,0.00034,2]
[355132141,1740931855371,-22316.29626583,0.00034,2]
[355132142,1740931855434,-904.98124392,0.00034,2]
[355132143,1740931855447,-451.138672,0.00034,2]
[355132144,1740931855459,-1078.107955,0.00034,2]
[355132145,1740931856198,-10567.30295601,0.00034,2]
[355132146,1740931856209,-807.26814364,0.00034,2]
[355132147,1740931856219,-160.0,0.00034,3]
[355132148,1740931856229,-9514.95691438,0.00034,5]
[355132149,1740931856240,-1801.4,0.00034,11]
[355132150,1740931856250,-2000.0,0.00034,11]
[355132151,1740931856261,-2053.0,0.00034,17]
[355132152,1740931856270,-160.0,0.00034029,8]
[355132153,1740931856284,-189.828,0.000344,38]
[355132154,1740931856295,-160.0,0.00034594,9]
[355132155,1740931856306,-2806.49,0.000347,30]
[355132156,1740931856316,-1257.1532965,0.00034849,120]
[355132157,1740931856325,-25000.0,0.00034899,21]
[355132158,1740931856335,-2327.33,0.000349,30]
[355132159,1740931856346,-1240.32,0.000349,30]
[355132160,1740931856355,-36842.34,0.000349,30]
[355132161,1740931856365,-851.20096982,0.00035,2]
[355132162,1740931856376,-10508.31700358,0.00035,2]
[355132163,1740931856386,-858.39,0.00035,30]
[355132164,1740931856396,-200.0,0.00035,120]
[355132165,1740931856406,-402.94182119,0.00035,120]
[355132166,1740931856416,-150.0,0.00035,69]
[355132167,1740931856426,-492.333,0.00035,5]
[355132168,1740931856436,-857.299999,0.00035,14]
[355132169,1740931856446,-492.33275,0.00035,5]
[355132170,1740931856456,-160.0,0.00035,30]
[355132171,1740931856465,-2000.0,0.00035,4]
[355132172,1740931856476,-165.25020261,0.00035,2]
[355132173,1740931856485,-2014.0,0.0003501,2]
[355132174,1740931856496,-160.0,0.00035159,10]
[355132175,1740931856505,-195.95,0.000354,7]
[355132176,1740931856515,-2053.0,0.000355,18]
[355132177,1740931856525,-160.0,0.00035723,11]
[355132178,1740931856537,-500.0,0.0003589,2]
[355132179,1740931856547,-2960.0,0.0003596,2]
[355132180,1740931856557,-7711.27486943,0.00036,2]
[355132181,1740931856568,-240.0,0.00036,2]
[355132182,1740931856578,-240.0,0.00036,2]
[355132183,1740931856588,-240.0,0.00036,2]
[355132184,1740931856598,-1005.278097,0.00036008,2]
[355132185,1740931856609,-2806.49,0.000362,30]
[355132186,1740931856619,-200.61742531,0.0003621,2]
[355132187,1740931856629,-260.94437028,0.0003624,2]
[355132188,1740931856639,-160.0,0.00036288,12]
[355132189,1740931856649,-323.669162,0.0003653,120]
[355132190,1740931856659,-2327.33,0.000366,30]
[355132191,1740931856670,-1240.32,0.000366,30]
[355132192,1740931856679,-7096.68019648,0.000366,30]
[355132193,1740931856791,-397.0,0.00027779,2]
[355132194,1740931856802,-397.0,0.00030779,2]
[355132195,1740931856814,-29745.65980352,0.000366,30]
[355132196,1740931856825,-229.78161448,0.00036822,2]
[355132197,1740931856835,-160.0,0.00036853,13]
[355132198,1740931856845,-150.0,0.00036853,2]
[355132199,1740931856855,-150.0,0.00036853,2]
[355132200,1740931856865,-1479.66,0.000369,31]
[355132201,1740931856875,-1479.66,0.000369,31]
[355132202,1740931856890,-1479.66,0.000369,31]
[355132203,1740931856900,-1479.66,0.000369,31]
[355132204,1740931856910,-858.39,0.00037,30]
[355132205,1740931856919,-2053.0,0.00037,19]
[355132206,1740931856929,-1500.0,0.00037071,5]
[355132207,1740931856939,-1500.0,0.00037071,5]
[355132208,1740931856949,-1500.0,0.00037071,5]
[355132209,1740931856961,-160.0,0.00037417,14]
[355132210,1740931856972,-1500.0,0.00037471,5]
[355132211,1740931856982,-1500.0,0.00037471,5]
[355132212,1740931856991,-1500.0,0.00037471,5]
[355132213,1740931857001,-1500.0,0.00037471,5]
[355132214,1740931857011,-1500.0,0.00037471,5]
[355132215,1740931857020,-500.06331975,0.00037471,5]
[355132216,1740931857029,-150.0,0.000375,112]
[355132217,1740931857041,-2000.0,0.000375,4]
[355132218,1740931857051,-195.95,0.000376,7]
[355132219,1740931857061,-656.29987,0.000376,120]
[355132220,1740931857071,-565.49129904,0.00037671,5]
[355132221,1740931857222,-316.425,0.00021516,2]
[355132222,1740931857234,-183.575,0.00021516,2]
[355132223,1740931857244,-200.19450913,0.00021516,2]
[355132224,1740931857256,-299.80549087,0.00021516,2]
[355132225,1740931857266,-500.0,0.00021516,2]
[355132226,1740931857275,-500.0,0.00021516,2]
[355132227,1740931857289,-500.0,0.00021516,2]
[355132228,1740931857298,-500.0,0.00021516,2]
[355132229,1740931857308,-363.66951463,0.00021516,2]
[355132230,1740931857461,-136.33048537,0.00021516,2]
[355132231,1740931857471,-300.50897871,0.00021917,2]
[355132232,1740931857481,-303.2,0.00026581,15]
[355132233,1740931857491,-397.0,0.00033779,2]
[355132234,1740931857501,-397.0,0.00036779,2]
[355132235,1740931857511,-136.08350752,0.00037671,5]
[355132236,1740931857521,-1500.0,0.00037671,5]
[355132237,1740931857534,-1500.0,0.00037671,5]
[355132238,1740931857544,-1500.0,0.00037671,5]
[355132239,1740931857554,-1500.0,0.00037671,5]
[355132240,1740931857564,-2848.35484283,0.00037788,2]
[355132241,1740931857574,-160.0,0.00037982,15]
[355132242,1740931857585,-289.52184952,0.00038,2]
[355132243,1740931857602,-710.47815048,0.00038,2]
[355132244,1740931857612,-1242.26396199,0.00038,30]
[355132245,1740931857625,-1564.22603801,0.00038,30]
[355132246,1740931857635,-350.0,0.00038,120]
[355132247,1740931857646,-348.41592259,0.00038,120]
[355132248,1740931857659,-51.58407741,0.00038,120]
[355132249,1740931857669,-555.36592268,0.000383,7]
[355132250,1740931858475,-7496.91407732,0.000383,7]
[355132251,1740931858485,-1000.0,0.00038356,60]
[355132252,1740931858496,-1000.0,0.00038356,60]
[355132253,1740931858505,-1000.0,0.00038356,60]
[355132254,1740931858515,-1000.0,0.00038356,60]
[355132255,1740931858525,-511.74936205,0.00038356,60]
[355132256,1740931858539,-2053.0,0.000385,20]
[355132257,1740931858549,-150.3,0.000385,120]
[355132258,1740931858559,-160.0,0.00038547,16]
[355132259,1740931858568,-1000.0,0.00039,2]
[355132260,1740931858578,-240.0,0.00039,2]
[355132261,1740931858588,-240.0,0.00039,2]
[355132262,1740931858598,-240.0,0.00039,2]
[355132263,1740931858609,-2327.33,0.000391,30]
[355132264,1740931858619,-1240.32,0.000391,30]
[355132265,1740931858629,-4893.82189899,0.000391,30]
[355132292,1740932567010,5000.0,0.0002,30]
[355132293,1740932576079,5000.0,0.0002,30]
[355132294,1740932584789,5000.0,0.0002,30]
[355132302,1740932857852,724.28,0.00010959,2]
[355132312,1740932903729,407.09711699,0.0001399,2]
[355132313,1740932905793,11152.50934048,0.000125,2]
[355132314,1740932925779,665.22284801,0.0001,7]
[355132315,1740932927038,609.05617438,9e-05,2]
[355132316,1740932927984,12690.88846207,0.000145,2]
[355132320,1740932928727,200.36302348,0.00015,2]
[355132322,1740932930862,569.39852284,0.000149,2]
[355132323,1740932931160,700.0,0.0001,2]
[355132325,1740932933085,8406.61399233,0.000135,2]
[355132327,1740932935105,246533.04089978,0.0001,7]
[355132329,1740932946956,-300.0,0.00016486,2]
[355132330,1740932946979,-15549.8573926,0.00016487,2]
[355132337,1740933002229,844.95,0.00010959,2]
[355132341,1740933013147,704.13,0.00010959,2]
[355132342,1740933023673,586.77,0.00010959,2]
[355132343,1740933024153,1235.8983017,0.00015959,2]
[355132344,1740933025818,171.2260753,0.0001569,2]
[355132356,1740933033486,1213.9315802,0.00015565,2]
[355132357,1740933035188,488.98,0.00010959,2]
[355132378,1740933037578,-264.27365999,0.00016336,2]
[355132421,1740933038108,-867.85063101,0.00016336,2]
[355132423,1740933038118,-153.64,0.00016477,2]
[355132425,1740933038129,-300.0,0.00016486,2]
[355132427,1740933038139,-500.0,0.00016486,2]
[355132429,1740933038150,-500.0,0.00016486,2]
[355132431,1740933038164,-500.0,0.00016486,2]
[355132433,1740933038174,-500.0,0.00016486,2]
[355132438,1740933038214,-500.0,0.00016486,2]
[355132441,1740933038225,-537.34885476,0.00016486,2]
[355132445,1740933038236,-500.0,0.00016486,2]
[355132449,1740933038246,-500.0,0.00016486,2]
[355132454,1740933038256,-500.0,0.00016486,2]
[355132457,1740933038266,-798.70283584,0.00016486,2]
[355132462,1740933038275,-500.0,0.00016486,2]
[355132464,1740933038290,-473.23120733,0.00016486,2]
[355132470,1740933038300,-500.0,0.00016486,2]
[355132474,1740933038310,-500.0,0.00016486,2]
[355132477,1740933038320,-500.0,0.00016486,2]
[355132480,1740933038331,-500.0,0.00016486,2]
[355132482,1740933038340,-500.0,0.00016486,2]
[355132484,1740933038351,-798.70283584,0.00016486,2]
[355132486,1740933038361,-500.0,0.00016486,2]
[355132487,1740933038372,-500.0,0.00016486,2]
[355132489,1740933038382,-500.0,0.00016486,2]
[355132491,1740933038393,-500.0,0.00016486,2]
[355132493,1740933038407,-500.0,0.00016486,2]
[355132495,1740933038417,-500.0,0.00016486,2]
[355132497,1740933038428,-798.70283584,0.00016486,2]
[355132499,1740933038439,-500.0,0.00016486,2]
[355132501,1740933038449,-500.0,0.00016486,2]
[355132503,1740933038459,-500.0,0.00016486,2]
[355132505,1740933038471,-500.0,0.00016486,2]
[355132507,1740933038482,-500.0,0.00016486,2]
[355132509,1740933038494,-798.70283584,0.00016486,2]
[355132511,1740933038505,-500.0,0.00016486,2]
[355132513,1740933038516,-500.0,0.00016486,2]
[355132515,1740933038528,-500.0,0.00016486,2]
[355132517,1740933038539,-500.0,0.00016486,2]
[355132519,1740933038549,-500.0,0.00016486,2]
[355132521,1740933038559,-500.0,0.00016486,2]
[355132523,1740933038570,-500.0,0.00016486,2]
[355132524,1740933038580,-282.44821377,0.00016486,2]
[355132525,1740933038591,-500.0,0.00016486,2]
[355132526,1740933038601,-798.70283584,0.00016486,2]
[355132527,1740933038611,-500.0,0.00016486,2]
[355132528,1740933038622,-500.0,0.00016486,2]
[355132529,1740933038632,-500.0,0.00016486,2]
[355132530,1740933038642,-500.0,0.00016486,2]
[355132531,1740933038652,-798.70283584,0.00016486,2]
[355132532,1740933038666,-500.0,0.00016486,2]
[355132534,1740933038675,-500.0,0.00016486,2]
[355132536,1740933038686,-500.0,0.00016486,2]
[355132538,1740933038696,-500.0,0.00016486,2]
[355132540,1740933038708,-798.70283584,0.00016486,2]
[355132542,1740933038718,-500.0,0.00016486,2]
[355132544,1740933038729,-798.70283584,0.00016486,2]
[355132547,1740933038739,-798.70283584,0.00016486,2]
[355132550,1740933038749,-798.70283584,0.00016486,2]
[355132553,1740933038759,-798.70283584,0.00016486,2]
[355132556,1740933038769,-798.70283584,0.00016486,2]
[355132562,1740933038780,-798.70283584,0.00016486,2]
[355132567,1740933038790,-798.70283584,0.00016486,2]
[355132570,1740933038800,-28149.83645098,0.00016487,2]
[355132573,1740933038811,-195.2306018,0.00016568,2]
[355132575,1740933038821,-153.64,0.00016598,2]
[355132577,1740933038832,-5202.0446999,0.00016608,2]
[355132579,1740933038844,-153.64,0.00017,2]
[355132581,1740933038855,-3396.67749136,0.0001701,2]
[355132583,1740933038865,-153.64,0.000171,2]
[355132585,1740933038875,-153.64,0.000171,2]
[355132587,1740933038885,-153.64,0.000171,2]
[355132589,1740933038895,-500.0,0.00017109,2]
[355132590,1740933038909,-474.46209053,0.00017109,2]
[355132592,1740933038919,-30047.73424982,0.0001711,2]
[355132594,1740933038929,-217.73498945,0.00017324,2]
[355132596,1740933038940,-5000.0,0.00017424,2]
[355132598,1740933038951,-217.73498944,0.00017486,2]
[355132600,1740933038960,-2043.90550082,0.000176,2]
[355132602,1740933038971,-217.73498944,0.00017647,2]
[355132604,1740933038982,-2107.25772099,0.00017747,2]
[355132606,1740933038993,-57625.170332,0.00017748,2]
[355132608,1740933039005,-305.69556243,0.00017773,2]
[355132609,1740933039015,-500.0,0.00017773,2]
[355132610,1740933039026,-500.0,0.00017773,2]
[355132612,1740933039037,-500.0,0.00017773,2]
[355132614,1740933039048,-500.0,0.00017773,2]
[355132616,1740933039058,-500.0,0.00017773,2]
[355132618,1740933039069,-500.0,0.00017773,2]
[355132620,1740933039078,-500.0,0.00017773,2]
[355132621,1740933039088,-500.0,0.00017773,2]
[355132623,1740933039098,-500.0,0.00017773,2]
[355132625,1740933039107,-500.0,0.00017773,2]
[355132627,1740933039117,-500.0,0.00017773,2]
[355132629,1740933039127,-500.0,0.00017773,2]
[355132631,1740933039136,-502.30626016,0.00017773,2]
[355132633,1740933039146,-500.0,0.00017773,2]
[355132634,1740933039160,-500.0,0.00017773,2]
[355132637,1740933039170,-500.0,0.00017773,2]
[355132638,1740933039180,-500.0,0.00017773,2]
[355132641,1740933039190,-423.05121655,0.00017773,2]
[355132642,1740933039200,-500.0,0.00017773,2]
[355132643,1740933039210,-7278.95933274,0.00018,4]
[355132644,1740933039220,-420.0,0.00018016,2]
[355132646,1740933039230,-43241.88355645,0.000182,4]
[355132648,1740933039240,-649.6067176,0.00018392,2]
[355132650,1740933039249,-210.51250746,0.00018699,2]
[355132652,1740933039260,-166.66666668,0.000187,2]
[355132654,1740933039270,-166.66666666,0.00018714,2]
[355132656,1740933039281,-166.66666666,0.00018727,2]
[355132658,1740933039293,-612.43193101,0.00018799,2]
[355132659,1740933039302,-250.0,0.00018827,2]
[355132661,1740933039311,-4122.56440983,0.000189,2]
[355132663,1740933039322,-941.813927,0.00018964,2]
[355132665,1740933039336,-185.1721689,0.0001897,2]
[355132667,1740933039346,-539.72176806,0.00019177,4]
[355132669,1740933039356,-2004.28619933,0.00019205,5]
[355132671,1740933039365,-1083.1085275,0.00019302,2]
[355132673,1740933039377,-300.44473379,0.0001932,2]
[355132675,1740933039387,-10000.0,0.0001942,2]
[355132677,1740933039397,-1009.7746737,0.00019518,2]
[355132679,1740933039411,-4564.006963,0.00019595,2]
[355132681,1740933039420,-250.0,0.00019894,2]
[355132683,1740933039430,-14509.47564186,0.0002,2]
[355132684,1740933039440,-355.41474365,0.0002,2]
[355132686,1740933039450,-197.92960751,0.00020216,2]
[355132688,1740933039460,-1396.31856928,0.00020216,2]
[355132690,1740933039470,-261.05206388,0.00020216,2]
[355132692,1740933039479,-2054.21148946,0.0002023,2]
[355132694,1740933039490,-151.0,0.000203,4]
[355132696,1740933039500,-2107.0588245,0.00020341,2]
[355132698,1740933039510,-16182.42773143,0.0002035,2]
[355132700,1740933039520,-160.34,0.00020511,2]
[355132702,1740933039530,-24900.0,0.00020522,2]
[355132704,1740933039540,-500.0,0.00020573,2]
[355132706,1740933039551,-24910.32163531,0.0002061,2]
[355132708,1740933039562,-151.0,0.000207,3]
[355132710,1740933039572,-1875.35,0.0002071,20]
[355132712,1740933039582,-465.13659377,0.0002079,2]
[355132714,1740933039592,-4546.32290803,0.00021,5]
[355132715,1740933039602,-264.60137176,0.00021,2]
[355132717,1740933039612,-10388.0031846,0.00021,2]
[355132720,1740933039623,-238.47669125,0.00021,2]
[355132721,1740933039634,-151.0,0.000211,4]
[355132723,1740933039646,-302.0,0.00021404,2]
[355132725,1740933039659,-200.0,0.00021404,2]
[355132726,1740933039670,-220.0,0.00021404,2]
[355132728,1740933039680,-242.0,0.00021404,2]
[355132730,1740933039690,-266.2,0.00021404,2]
[355132731,1740933039700,-292.82,0.00021404,2]
[355132733,1740933039710,-322.102,0.00021404,2]
[355132735,1740933039720,-354.3122,0.00021404,2]
[355132736,1740933039730,-389.74342,0.00021404,2]
[355132737,1740933039740,-400.0,0.00021404,2]
[355132738,1740933039750,-481.70849592,0.00021404,2]
[355132739,1740933039759,-222000.0,0.00021417,2]
[355132740,1740933039769,-500.0,0.00021473,2]
[355132741,1740933039779,-500.0,0.00021473,2]
[355132742,1740933039788,-500.0,0.00021473,2]
[355132743,1740933039799,-500.0,0.00021473,2]
[355132744,1740933039809,-500.0,0.00021473,2]
[355132745,1740933039819,-500.0,0.00021473,2]
[355132746,1740933039829,-500.0,0.00021473,2]
[355132748,1740933039840,-500.0,0.00021473,2]
[355132749,1740933039851,-500.0,0.00021473,2]
[355132751,1740933039862,-500.0,0.00021473,2]
[355132753,1740933039876,-500.0,0.00021473,2]
[355132755,1740933039887,-500.0,0.00021473,2]
[355132756,1740933039898,-565.49129904,0.00021473,2]
[355132757,1740933039914,-500.0,0.00021473,2]
[355132759,1740933039924,-500.0,0.00021473,2]
[355132761,1740933039934,-500.0,0.00021473,2]
[355132762,1740933039944,-160.40641223,0.00021473,2]
[355132764,1740933039954,-500.0,0.00021473,2]
[355132765,1740933039963,-500.0,0.00021473,2]
[355132766,1740933039972,-500.0,0.00021473,2]
[355132767,1740933039983,-500.0,0.00021473,2]
[355132768,1740933039992,-500.0,0.00021473,2]
[355132769,1740933040001,-500.0,0.00021473,2]
[355132770,1740933040012,-151.0,0.000216,4]
[355132771,1740933040021,-7275.0895655,0.00021697,2]
[355132772,1740933040031,-788.63336705,0.00021817,2]
[355132773,1740933040041,-500.0,0.00021917,2]
[355132774,1740933040050,-500.0,0.00021917,2]
[355132776,1740933040060,-500.0,0.00021917,2]
[355132778,1740933040070,-500.0,0.00021917,2]
[355132780,1740933040080,-500.0,0.00021917,2]
[355132781,1740933040089,-500.0,0.00021917,2]
[355132782,1740933040098,-500.0,0.00021917,2]
[355132783,1740933040108,-533.89425534,0.00021917,2]
[355132784,1740933040117,-500.0,0.00021917,2]